bitfinex/quotes_ETHUSD_20260217
["timestamp","ask_amount","ask_price","bid_price","bid_amount"]
[1771295137082,0.59207937,2006.7,2006.4,0.001]
[1771295137359,0.59207937,2006.7,2006.2,0.001]
[1771295137694,0.59207937,2006.7,2006.0,0.001]
[1771295137695,0.59207937,2006.6,2006.0,0.001]
[1771295137860,0.59207937,2006.6,2005.8,0.001]
[1771295138988,0.59207937,2006.4,2005.6,0.001]
[1771295141475,0.59207937,2006.2,2005.6,0.001]
[1771295141670,1.24607486,2006.3,2005.6,0.5704039]
[1771295143599,4.98383714,2006.5,2005.7,0.5694039]
[1771295144380,5.53609648,2006.5,2005.7,0.5694039]
[1771295146380,0.55225934,2006.4,2005.6,0.001]
[1771295147705,1.7983342,2006.3,2005.6,0.001]
[1771295147893,0.55225934,2006.2,2005.6,0.001]
[1771295148075,0.55225934,2006.1,2005.4,0.001]
[1771295148678,0.55225934,2006.0,2005.2,0.001]
[1771295149482,0.55225934,2006.0,2005.9,0.001]
[1771295149690,0.55225934,2006.0,2005.2,0.001]
[1771295149895,1.80052735,2005.9,2005.7,0.001]
[1771295150116,1.80052735,2005.9,2005.2,0.001]
[1771295150609,1.80052735,2005.9,2005.4,0.001]
[1771295150809,1.80052735,2005.9,2005.2,0.001]
[1771295151482,0.739,2005.8,2005.2,0.001]
[1771295151883,1.24644762,2005.7,2005.2,0.001]
[1771295153422,0.55420401,2005.6,2005.0,0.001]
[1771295153911,1.24657192,2005.5,2005.0,0.001]
[1771295154209,1.80077593,2005.5,2005.0,0.001]
[1771295154914,1.24657192,2005.5,2005.0,0.55871788]
[1771295155097,1.24657192,2005.5,2005.0,0.001]
[1771295155812,0.55420401,2006.2,2005.0,0.55871788]
[1771295156004,1.24632334,2005.9,2005.1,0.55771788]
[1771295157189,0.55420401,2005.8,2005.0,0.001]
[1771295157406,0.55420401,2005.6,2005.0,0.001]
[1771295158022,1.80077593,2005.5,2004.9,0.001]
[1771295158709,1.24657192,2005.5,2004.9,0.001]
[1771295158913,1.24657192,2005.5,2004.9,0.55871788]
[1771295160121,4.9862877,2005.6,2004.9,0.001]
[1771295160297,0.55420401,2005.5,2004.9,0.001]
[1771295160625,0.55420401,2005.5,2004.7,0.001]
[1771295160924,4.9862877,2005.6,2004.8,0.55771788]
[1771295161122,2.54071378,2005.7,2004.8,0.55771788]
[1771295161123,4.98567003,2005.8,2004.8,0.55771788]
[1771295161294,5.72567003,2005.8,2004.8,0.55771788]
[1771295162239,4.98458728,2006.2,2005.0,0.55771788]
[1771295162425,0.74,2006.1,2005.0,0.55771788]
[1771295162728,0.0011,2005.8,2005.0,0.55771788]
[1771295164012,0.0011,2005.8,2005.1,0.55771788]
[1771295167026,0.0011,2005.8,2005.1,1.80453129]
[1771295167527,0.0011,2005.8,2005.1,1.24681341]
[1771295167706,0.0011,2005.8,2005.2,0.55771788]
[1771295168708,0.0011,2005.8,2005.0,1.24684194]
[1771295168709,0.0011,2005.8,2005.0,1.80455982]
[1771295168931,0.0011,2005.8,2005.1,0.55771788]
[1771295169125,0.0011,2005.8,2005.2,0.55771788]
[1771295171335,0.0011,2005.8,2005.0,1.24684292]
[1771295171505,0.0011,2005.8,2005.0,1.8045608]
[1771295173106,1.24748548,2005.8,2005.0,1.8045608]
[1771295173935,0.55420401,2005.7,2004.9,1.78338911]
[1771295174637,0.55420401,2005.7,2004.9,0.53645154]
[1771295174944,0.55420401,2005.7,2004.9,0.001]
[1771295175311,1.24650977,2005.6,2004.9,0.001]
[1771295175531,1.24650977,2005.6,2005.0,0.001]
[1771295175708,1.78685406,2005.6,2005.0,0.001]
[1771295176438,0.53924429,2005.5,2004.8,0.001]
[1771295177726,1.24663408,2005.4,2004.8,0.001]
[1771295177923,1.78587837,2005.4,2004.8,0.001]
[1771295178428,1.24663408,2005.4,2004.7,0.001]
[1771295178630,1.24663408,2005.4,2004.7,0.53645154]
[1771295180323,1.24657192,2005.5,2004.8,1.78245872]
[1771295180519,0.7371,2005.6,2004.9,0.53545154]
[1771295180758,1.98361029,2005.6,2004.9,0.53545154]
[1771295182858,0.0011,2005.6,2005.1,0.53545154]
[1771295183349,0.0011,2005.8,2005.2,0.53545154]
[1771295184740,0.0011,2005.8,2005.4,0.53545154]
[1771295186758,0.0011,2005.8,2005.5,1.24657192]
[1771295187059,0.0011,2005.8,2005.5,1.78202346]
[1771295188047,0.0011,2005.8,2005.6,0.53545154]
[1771295188333,0.0011,2006.0,2005.6,0.53545154]
[1771295188956,0.0011,2006.0,2005.7,1.24644762]
[1771295189263,0.0011,2006.0,2005.7,1.78189916]
[1771295189447,0.0011,2006.0,2005.8,0.53545154]
[1771295189650,0.0011,2006.3,2005.8,0.53545154]
[1771295190936,0.0011,2006.3,2005.9,1.24632334]
[1771295191667,0.0011,2006.3,2006.0,0.53545154]
[1771295193028,0.0011,2006.3,2006.1,1.24619909]
[1771295194269,1.24674755,2007.0,2006.2,0.53545154]
[1771295194562,0.0011,2007.0,2006.2,0.53545154]
[1771295195161,0.0011,2007.0,2006.4,0.53545154]
[1771295197182,0.0011,2007.0,2006.5,1.7814022]
[1771295197351,0.0011,2007.0,2006.6,0.53545154]
[1771295199079,0.0011,2007.0,2006.7,1.24582648]
[1771295199536,0.0011,2007.0,2006.6,1.78128961]
[1771295200241,0.0011,2007.0,2006.7,0.53545154]
[1771295200541,0.0011,2006.8,2006.7,0.53545154]
[1771295201370,0.0011,2006.8,2006.7,1.78127802]
[1771295203983,0.0011,2006.8,2006.5,1.24590162]
[1771295204285,0.0011,2006.8,2006.6,0.764]
[1771295205976,0.0011,2006.8,2006.6,2.01088237]
[1771295206272,0.0011,2006.8,2006.6,0.765]
[1771295206477,0.0011,2006.8,2006.6,2.01088554]
[1771295206982,0.0011,2006.8,2006.6,0.765]
[1771295207273,0.0011,2006.8,2006.4,1.24700673]
[1771295207579,0.0011,2006.8,2006.4,2.01200673]
[1771295208296,0.0011,2006.8,2006.4,0.766]
[1771295208459,0.0011,2006.8,2006.4,1.24701133]
[1771295208660,0.0011,2006.8,2006.4,0.766]
[1771295208855,0.52652974,2006.8,2006.4,0.001]
[1771295209268,0.0011,2006.8,2006.4,0.001]
[1771295209664,0.0011,2006.8,2006.5,0.5001371]
[1771295210464,0.0011,2006.8,2006.6,1.24588856]
[1771295210682,0.0011,2006.8,2006.6,1.74602566]
[1771295210877,0.0011,2006.8,2006.6,2.51102566]
[1771295212784,0.0011,2006.8,2006.6,0.765]
[1771295212975,0.0011,2006.8,2006.7,0.5001371]
[1771295214274,0.0011,2006.8,2006.6,2.01087962]
[1771295214799,0.0011,2006.8,2006.6,0.765]
[1771295215999,0.0011,2006.8,2006.5,0.767]
[1771295217092,0.0011,2006.8,2006.5,2.01294802]
[1771295217499,0.0011,2006.8,2006.5,0.767]
[1771295218175,0.0011,2006.8,2006.5,0.768]
[1771295219707,0.52351775,2006.8,2006.4,0.001]
[1771295220796,0.52241775,2006.7,2005.9,0.001]
[1771295220994,0.52241775,2006.7,2005.9,0.002]
[1771295221510,0.52241775,2006.5,2005.9,0.002]
[1771295222298,0.52241775,2006.4,2005.2,1.24672157]
[1771295222613,1.24441775,2006.5,2005.5,0.5001371]
[1771295222970,1.24441775,2006.5,2005.6,0.5011371]
[1771295223176,0.52241775,2006.5,2005.6,0.5011371]
[1771295223803,1.76841465,2006.5,2005.7,1.74658472]
[1771295224177,1.76841465,2006.5,2005.8,0.001]
[1771295224384,1.76841465,2006.5,2006.1,0.001]
[1771295225119,1.24702842,2006.6,2006.1,0.001]
[1771295225324,1.2469907,2006.6,2006.1,0.002]
[1771295225922,1.76940845,2006.6,2006.1,0.002]
[1771295226526,1.76940845,2006.6,2006.1,0.001]
[1771295227230,1.2469907,2006.6,2006.1,0.001]
[1771295227405,0.52241775,2006.5,2006.1,0.002]
[1771295228367,1.76841212,2006.5,2006.1,0.002]
[1771295228630,1.24599437,2006.5,2006.1,0.002]
[1771295229720,1.24704224,2006.6,2006.1,0.002]
[1771295230931,1.76945999,2006.6,2006.1,0.002]
[1771295232835,1.24601275,2006.4,2006.1,0.002]
[1771295233912,1.7684305,2006.4,2005.9,0.001]
[1771295236435,0.48666186,2006.3,2005.6,0.764]
[1771295236638,0.48666186,2006.3,2005.6,2.01049414]
[1771295237024,1.24613697,2006.2,2005.6,2.49695349]
[1771295237848,1.24613697,2006.2,2006.1,0.001]
[1771295238142,1.24613697,2006.2,2005.6,2.49695349]
[1771295238346,1.24613697,2006.2,2005.9,0.001]
[1771295238523,1.24613697,2006.2,2005.6,1.25045935]
[1771295238524,1.73279883,2006.2,2005.6,0.001]
[1771295238711,0.48666186,2006.1,2005.6,0.001]
[1771295239139,1.24632334,2005.9,2005.3,0.762]
[1771295239337,1.24632334,2005.9,2005.1,0.898]
[1771295239338,1.7329852,2005.9,2005.1,2.14479427]
[1771295239538,1.7329852,2005.9,2005.1,2.63125362]
[1771295239742,0.48666186,2005.8,2005.1,1.38445935]
[1771295239946,0.48666186,2005.8,2005.1,2.63126502]
[1771295240919,1.24628203,2006.0,2005.2,0.48645935]
[1771295241320,1.24628203,2006.0,2005.3,1.24669625]
[1771295241520,1.97123851,2006.1,2005.4,0.48645935]
[1771295241719,1.24623851,2006.1,2005.4,0.48645935]
[1771295243451,4.98466939,2006.2,2005.5,1.73303127]
[1771295244726,1.24613697,2006.2,2005.5,1.24657192]
[1771295244931,1.24613697,2006.2,2005.6,0.48645935]
[1771295245848,4.9855295,2006.3,2005.6,1.73292005]
[1771295246243,4.9855295,2006.3,2005.6,0.48645935]
[1771295246461,5.47219136,2006.3,2005.5,1.24652162]
[1771295246668,0.48666186,2006.2,2005.4,0.761]
[1771295246955,0.48666186,2006.2,2005.3,1.73311526]
[1771295247740,0.48666186,2006.2,2005.2,2.00670763]
[1771295247947,0.48666186,2006.0,2005.2,2.49316698]
[1771295249437,0.48666186,2006.0,2005.2,1.24645935]
[1771295249660,0.48666186,2006.0,2005.2,2.49321163]
[1771295249848,1.24632334,2005.9,2005.2,2.49321163]
[1771295250626,1.24632334,2005.9,2005.3,0.001]
[1771295251553,1.24740315,2006.0,2005.3,0.48745935]
[1771295251944,0.0011,2006.0,2005.5,0.48645935]
[1771295253928,0.0011,2006.0,2005.7,0.48645935]
[1771295256168,0.0011,2006.0,2005.8,1.24638548]
[1771295256354,0.0011,2006.0,2005.7,1.7328628]
[1771295256665,0.0011,2006.0,2005.8,0.48645935]
[1771295258586,0.0011,2006.0,2005.7,0.76]
[1771295260956,0.0011,2006.0,2005.5,1.73298715]
[1771295260957,0.0011,2006.0,2005.5,2.49398715]
[1771295264050,0.0011,2006.0,2005.6,0.48645935]
[1771295265461,0.0011,2006.0,2005.7,1.24744762]
[1771295266360,0.0011,2006.0,2005.7,0.001]
[1771295268663,0.48245569,2006.0,2005.7,0.001]
[1771295269535,0.0011,2006.0,2005.7,0.001]
[1771295272655,0.0011,2006.0,2005.7,0.48203021]
[1771295274645,0.0011,2006.0,2005.7,0.001]
[1771295275152,0.0011,2006.0,2005.7,1.24743818]
[1771295275664,0.0011,2006.0,2005.7,0.001]
[1771295279980,0.0011,2006.0,2005.8,0.001]
[1771295280354,0.0011,2006.0,2005.8,0.48203021]
[1771295281570,0.0011,2006.0,2005.9,2.48935355]
[1771295283054,0.0011,2006.0,2005.9,1.24303021]
[1771295283266,0.0011,2006.0,2005.9,0.762]
[1771295285196,0.0011,2006.0,2005.8,0.001]
[1771295287477,0.0011,2006.0,2005.8,0.48203021]
[1771295287962,0.0011,2006.0,2005.9,1.24632334]
[1771295288355,0.0011,2006.0,2005.9,1.72735355]
[1771295288563,0.0011,2006.2,2006.0,0.48103021]
[1771295290786,0.0011,2006.2,2006.1,1.24619909]
[1771295292384,0.0011,2006.2,2006.1,2.01019909]
[1771295296100,0.0011,2006.2,2006.1,0.764]
[1771295296276,0.0011,2006.2,2006.1,2.01019909]
[1771295297664,0.0011,2006.2,2006.1,0.764]
[1771295299869,0.0011,2006.2,2006.1,2.01019909]
[1771295300172,0.0011,2006.2,2006.1,0.764]
[1771295300365,0.0011,2006.2,2006.0,0.768]
[1771295300805,0.49085947,2006.2,2005.8,0.769]
[1771295301103,0.0011,2006.2,2005.8,2.01536697]
[1771295301304,0.0011,2006.2,2005.8,0.769]
[1771295301667,0.0011,2006.2,2005.9,0.49114162]
[1771295302486,0.0011,2006.2,2006.0,1.73740283]
[1771295302689,0.0011,2006.2,2006.1,0.768]
[1771295302968,0.0011,2006.2,2006.1,1.25914162]
[1771295304364,0.0011,2006.2,2006.1,0.768]
[1771295304694,0.0011,2006.2,2006.1,2.01419909]
[1771295304994,0.0011,2006.2,2006.1,0.768]
[1771295305700,0.0011,2006.2,2005.9,0.769]
[1771295306001,0.0011,2006.0,2005.9,0.769]
[1771295309303,0.0011,2006.0,2005.8,0.001]
[1771295314246,0.0011,2006.0,2005.8,0.49214162]
[1771295314754,0.0011,2006.2,2005.9,1.25914162]
[1771295314888,0.0011,2006.2,2006.0,0.49114162]
[1771295316902,0.0011,2006.2,2006.0,1.73739852]
[1771295318221,0.0011,2006.2,2006.1,0.001]
[1771295320611,0.0011,2006.2,2006.1,0.49214162]
[1771295321699,0.0011,2006.2,2006.1,0.001]
[1771295328609,0.0011,2006.2,2006.1,0.47474138]
[1771295330020,0.0011,2006.2,2006.1,1.72094047]
[1771295333711,0.0011,2006.2,2006.1,0.001]
[1771295341659,0.47301368,2006.2,2005.8,0.001]
[1771295342015,0.0011,2006.2,2005.8,1.2473801]
[1771295342417,0.0011,2006.2,2005.8,0.001]
[1771295342641,0.0011,2006.2,2005.8,0.49507096]
[1771295342848,0.0011,2006.2,2006.0,0.49407096]
[1771295344115,0.0011,2006.2,2006.0,0.49507096]
[1771295345946,0.0011,2006.2,2006.1,1.24619909]
[1771295346522,0.0011,2006.2,2006.0,1.74128132]
[1771295348024,0.0011,2006.2,2006.1,0.49407096]
[1771295350031,0.0011,2006.2,2006.0,0.001]
[1771295350235,0.0011,2006.2,2006.0,1.24722551]
[1771295355560,0.0011,2006.2,2006.1,0.001]
[1771295368354,0.0011,2006.5,2006.1,0.001]
[1771295368653,0.0011,2006.5,2006.2,0.788]
[1771295369872,0.0011,2006.5,2006.2,2.0341355]
[1771295370779,0.0011,2006.5,2006.2,0.788]
[1771295375179,0.49075788,2006.5,2006.2,0.788]
[1771295375390,0.49075788,2006.5,2006.1,0.001]
[1771295375686,0.48965788,2006.4,2006.1,0.001]
[1771295375984,0.48965788,2006.4,2006.0,0.001]
[1771295377184,0.48965788,2006.4,2005.9,0.001]
[1771295377185,0.48965788,2006.2,2005.9,0.001]
[1771295377566,0.48965788,2006.4,2005.9,0.001]
[1771295377963,0.0011,2006.5,2005.9,0.001]
[1771295378153,0.0011,2006.5,2005.9,0.48558573]
[1771295379388,0.0011,2006.5,2006.2,0.001]
[1771295379586,0.0011,2006.3,2006.2,0.001]
[1771295390503,0.0011,2006.3,2006.2,1.24713697]
[1771295390666,0.0011,2006.3,2006.2,0.001]
[1771295398711,0.0011,2006.8,2006.3,0.4967973]
[1771295398892,0.0011,2007.1,2006.7,0.4967973]
[1771295399093,0.0011,2007.2,2006.9,0.4967973]
[1771295400323,0.48265695,2007.1,2006.4,0.4967973]
[1771295400471,0.0022,2007.1,2006.8,0.4967973]
[1771295400672,0.0022,2007.1,2007.0,0.4967973]
[1771295400874,0.0011,2007.2,2007.0,0.4967973]
[1771295401101,0.0022,2007.1,2007.0,0.4967973]
[1771295402009,0.0011,2007.2,2007.0,0.4967973]
[1771295402173,0.0033,2007.2,2007.0,0.4967973]
[1771295403175,0.0011,2007.1,2007.0,1.74243755]
[1771295404119,0.0011,2007.6,2007.0,1.74243755]
[1771295404412,0.0011,2007.6,2007.2,0.4967973]
[1771295405002,1.72902698,2007.6,2007.1,0.792]
[1771295405185,1.72902698,2007.6,2006.6,5.06791672]
[1771295405186,0.48265695,2007.4,2006.6,2.64064272]
[1771295405389,0.48265695,2007.4,2006.7,0.792]
[1771295405693,5.55057367,2007.4,2006.7,0.792]
[1771295406001,0.48265695,2007.3,2006.7,0.792]
[1771295407186,0.48265695,2007.1,2006.7,0.792]
[1771295408481,0.48265695,2007.1,2006.7,2.03781054]
[1771295408818,0.48265695,2007.3,2006.7,2.03781054]
[1771295409720,1.728122,2007.3,2006.7,2.03781054]
[1771295410017,1.728122,2007.3,2006.7,0.792]
[1771295410018,0.48265695,2007.2,2006.7,0.792]
[1771295411479,0.48265695,2007.2,2006.6,1.24588831]
[1771295411675,0.48265695,2007.2,2006.6,1.74268561]
[1771295413043,1.72817652,2007.2,2006.6,1.74268561]
[1771295413715,0.48265695,2007.1,2006.5,2.03695049]
[1771295414439,0.48265695,2007.1,2006.5,2.49892262]
[1771295415237,0.48265695,2007.1,2006.8,0.001]
[1771295415607,1.72827199,2007.1,2006.8,0.001]
[1771295417434,0.47425516,2007.0,2006.8,0.001]
[1771295418433,1.24561504,2007.1,2006.8,0.001]
[1771295418615,1.7198702,2007.1,2006.8,0.001]
[1771295422241,1.24561504,2007.1,2006.8,0.001]
[1771295423337,5.54217188,2007.0,2006.5,0.001]
[1771295423511,0.47425516,2007.2,2006.6,0.46197213]
[1771295423711,1.94659393,2007.3,2006.6,0.46197213]
[1771295423933,1.94659393,2007.3,2006.7,1.70779861]
[1771295425341,1.94659393,2007.3,2006.7,0.46197213]
[1771295425703,2.42084909,2007.3,2006.7,0.46197213]
[1771295426641,2.42084909,2007.3,2006.7,1.70778381]
[1771295427446,1.72084909,2007.3,2006.7,1.70778381]
[1771295428039,1.72084909,2007.3,2006.7,0.46197213]
[1771295428238,0.47425516,2007.2,2006.6,1.70784491]
[1771295428438,1.24659393,2007.3,2006.7,0.46197213]
[1771295428735,0.0011,2007.3,2006.8,1.2457644]
[1771295428911,0.0011,2007.3,2006.8,1.70773653]
[1771295429242,0.0011,2007.3,2006.9,0.001]
[1771295429429,0.0011,2007.2,2006.9,0.001]
[1771295430732,0.0011,2007.2,2006.9,0.46297213]
[1771295433246,0.0011,2007.2,2006.9,1.24669676]
[1771295433414,0.0011,2007.2,2006.9,1.70866889]
[1771295433613,0.0011,2007.2,2007.0,0.46197213]
[1771295435240,0.0011,2007.2,2007.1,1.70755032]
[1771295436343,0.0011,2007.2,2007.0,1.24559166]
[1771295436746,0.0011,2007.2,2007.0,1.70756379]
[1771295437622,0.0011,2007.2,2007.0,2.49756379]
[1771295437823,0.0011,2007.2,2007.1,0.46197213]
[1771295438854,0.0011,2007.6,2007.4,0.46197213]
[1771295439016,0.0011,2007.8,2007.6,0.46197213]
[1771295439644,0.0011,2007.8,2007.6,1.70724011]
[1771295439844,0.0011,2007.8,2007.5,0.791]
[1771295440653,0.0011,2007.8,2006.9,1.24665635]
[1771295440654,0.47535516,2007.7,2006.9,1.24665635]
[1771295440816,0.47535516,2007.7,2007.1,0.791]
[1771295441750,0.0011,2007.7,2007.2,0.46197213]
[1771295442338,1.24632318,2007.7,2007.2,0.46197213]
[1771295443071,0.0011,2007.3,2007.2,0.46197213]
[1771295443766,0.0011,2007.3,2007.1,0.791]
[1771295446672,0.0011,2007.3,2007.2,0.46911056]
[1771295447750,0.0011,2007.3,2007.1,1.26011056]
[1771295447948,0.0011,2007.3,2007.1,0.791]
[1771295448272,0.0011,2007.3,2007.0,0.793]
[1771295449964,0.0011,2007.3,2007.0,1.25175927]
[1771295450384,0.0011,2007.3,2007.0,2.49739918]
[1771295450578,0.0011,2007.3,2007.0,2.49739303]
[1771295450891,0.4740113,2007.3,2007.0,0.001]
[1771295451456,0.4740113,2007.3,2006.9,0.001]
[1771295451655,0.4729113,2007.1,2006.7,0.001]
[1771295451958,0.4729113,2006.9,2006.5,0.001]
[1771295452189,0.4729113,2006.7,2006.5,0.001]
[1771295452685,0.4729113,2006.7,2006.4,0.001]
[1771295453487,0.4729113,2006.7,2006.2,0.001]
[1771295454290,1.24588856,2006.6,2006.2,0.001]
[1771295454492,1.71879986,2006.6,2006.2,0.001]
[1771295454985,1.24588856,2006.6,2006.2,0.001]
[1771295455282,0.4729113,2006.5,2006.4,0.001]
[1771295456587,1.71886196,2006.5,2006.2,0.001]
[1771295456787,0.4729113,2006.4,2006.2,0.001]
[1771295456975,0.4729113,2006.4,2006.0,0.001]
[1771295457272,0.4729113,2006.4,2006.0,0.002]
[1771295457968,0.4729113,2006.4,2006.0,0.001]
[1771295458169,0.4729113,2006.4,2005.9,0.001]
[1771295458420,0.4729113,2006.4,2005.9,0.002]
[1771295458758,0.4729113,2006.2,2005.9,0.002]
[1771295459795,0.4729113,2006.2,2005.9,0.001]
[1771295460297,0.4729113,2006.2,2005.7,0.001]
[1771295460298,0.4729113,2006.1,2005.7,0.001]
[1771295460593,0.4729113,2006.1,2005.5,0.001]
[1771295460764,0.4729113,2005.9,2005.5,0.002]
[1771295461272,0.705,2005.8,2005.3,0.001]
[1771295461475,0.4729113,2005.7,2005.3,0.001]
[1771295461690,0.705,2005.8,2005.3,0.001]
[1771295461875,1.1779113,2005.8,2005.3,0.001]
[1771295462082,0.4729113,2005.7,2005.0,0.001]
[1771295462676,1.71942107,2005.6,2004.7,0.45875927]
[1771295463478,0.4729113,2005.5,2004.7,0.45875927]
[1771295463877,0.4729113,2005.5,2004.5,1.70590937]
[1771295464087,1.1769113,2005.4,2004.5,1.70590937]
[1771295464472,0.4729113,2005.3,2004.5,1.70590937]
[1771295464673,0.4729113,2005.3,2004.5,1.2471501]
[1771295464874,1.71966972,2005.2,2004.5,1.2471501]
[1771295465700,1.24668744,2005.4,2004.6,0.45875927]
[1771295467199,1.24668744,2005.4,2004.7,1.70682865]
[1771295468417,0.704,2005.5,2004.8,0.45875927]
[1771295468603,1.24655686,2005.6,2004.8,0.45875927]
[1771295469819,1.24655686,2005.6,2004.9,1.70570425]
[1771295470700,1.71946816,2005.6,2004.9,0.45875927]
[1771295471806,1.71953855,2005.5,2004.8,1.70571805]
[1771295472214,1.71953855,2005.5,2004.8,0.45875927]
[1771295472423,0.4729113,2005.4,2004.7,0.001]
[1771295473100,0.4729113,2005.4,2004.5,0.001]
[1771295473811,1.24669625,2005.3,2004.5,1.70694836]
[1771295474122,0.4729113,2005.2,2004.5,1.70695296]
[1771295474332,0.45289874,2005.9,2004.6,0.45971101]
[1771295474619,0.45289874,2005.6,2004.5,0.001]
[1771295476300,0.45289874,2005.3,2004.5,0.001]
[1771295476510,0.45289874,2005.1,2004.5,0.001]
[1771295478323,1.69978153,2005.0,2004.2,0.001]
[1771295479919,1.69978153,2005.0,2004.7,0.001]
[1771295480091,1.69978153,2005.0,2004.2,0.001]
[1771295480291,1.69978153,2005.0,2004.5,0.001]
[1771295481991,0.45289874,2004.9,2004.5,0.001]
[1771295482200,0.45289874,2004.9,2004.2,0.001]
[1771295482398,0.45289874,2004.9,2003.7,1.24763667]
[1771295482726,0.45289874,2004.7,2003.7,0.45971101]
[1771295482933,1.15589874,2004.6,2003.7,0.45971101]
[1771295483499,0.703,2004.7,2003.7,0.45971101]
[1771295484425,1.24700718,2004.8,2003.7,0.45971101]
[1771295484732,0.0011,2005.1,2003.9,0.45971101]
[1771295485023,1.24700718,2005.0,2003.9,0.45971101]
[1771295485427,1.24700718,2004.9,2003.9,0.45971101]
[1771295487118,1.24700718,2004.9,2004.0,1.24750499]
[1771295487427,1.24700718,2004.9,2004.1,0.45971101]
[1771295487618,1.24380718,2004.9,2004.0,1.24750499]
[1771295487817,1.24380718,2004.9,2004.1,0.45971101]
[1771295488124,0.45289874,2004.8,2003.9,0.45971101]
[1771295488527,1.24380718,2004.7,2003.9,0.45971101]
[1771295488703,0.45289874,2004.6,2003.7,1.70736507]
[1771295489109,1.24380718,2004.5,2003.7,1.70736507]
[1771295489428,1.24380718,2004.5,2003.5,0.783]
[1771295489429,0.45289874,2004.3,2003.5,0.783]
[1771295489601,1.24725603,2004.4,2003.5,2.49052646]
[1771295489795,1.24380718,2004.3,2003.5,1.24271101]
[1771295490225,1.69670592,2004.3,2003.5,1.24271101]
[1771295490627,0.45289874,2004.2,2003.4,1.24783754]
[1771295491119,0.45289874,2004.2,2003.3,1.24789105]
[1771295491315,1.24380718,2004.1,2003.3,1.24789105]
[1771295491701,1.24750499,2004.0,2003.2,5.45161603]
[1771295492225,1.24748967,2004.1,2003.3,0.45971101]
[1771295492431,2.49129685,2004.1,2003.5,0.001]
[1771295494200,2.94419559,2004.1,2003.5,0.001]
[1771295494400,2.49129685,2004.1,2003.5,0.001]
[1771295494600,0.45289874,2004.0,2003.5,0.001]
[1771295495412,1.24380718,2003.9,2003.5,0.001]
[1771295496530,1.24380718,2003.8,2003.5,0.001]
[1771295496704,1.24380718,2004.0,2003.5,0.001]
[1771295497341,0.45289874,2003.8,2003.0,0.001]
[1771295497634,1.94480718,2003.9,2003.0,0.46071101]
[1771295497838,1.24380718,2003.9,2003.0,0.46071101]
[1771295498146,1.24380718,2003.9,2003.0,0.779]
[1771295498338,1.24380718,2003.9,2003.1,0.45971101]
[1771295498544,0.701,2004.2,2003.3,0.45971101]
[1771295498711,1.24380718,2004.1,2003.3,0.45971101]
[1771295499405,1.24380718,2004.1,2003.4,0.45971101]
[1771295499615,2.1462581,2004.4,2003.4,0.45971101]
[1771295499817,1.24380718,2004.3,2003.4,0.45971101]
[1771295500218,1.24380718,2004.3,2003.5,0.45971101]
[1771295500943,2.49112845,2004.3,2003.6,1.70746505]
[1771295502221,2.94402719,2004.3,2003.5,1.24776756]
[1771295502545,0.45289874,2004.2,2003.3,1.24788139]
[1771295502719,0.45289874,2004.2,2003.3,2.02488139]
[1771295502919,2.94414866,2004.1,2003.2,1.70766942]
[1771295504821,1.24756724,2003.9,2003.2,1.24795841]
[1771295505037,1.24756724,2003.9,2003.1,2.02502338]
[1771295505247,1.24380718,2003.8,2003.1,2.02502338]
[1771295505542,1.24380718,2003.8,2003.1,2.48099856]
[1771295505745,1.24380718,2003.8,2003.0,0.001]
[1771295505943,0.45534219,2003.7,2003.0,1.24912465]
[1771295506119,0.45534219,2003.7,2003.4,0.001]
[1771295506314,0.40254219,2003.7,2003.0,1.24912465]
[1771295506529,1.24380718,2003.6,2003.2,0.001]
[1771295506738,1.24380718,2003.6,2003.0,0.001]
[1771295507052,1.24781632,2003.5,2003.0,0.001]
[1771295507618,1.24380718,2003.4,2003.0,0.001]
[1771295508751,1.24772371,2003.7,2003.0,0.45697518]
[1771295508949,4.99050488,2003.9,2003.1,1.70901634]
[1771295509355,1.24380718,2003.8,2003.0,1.71007789]
[1771295509560,0.48117238,2003.7,2003.0,0.001]
[1771295510148,1.24380718,2003.6,2003.1,0.46095085]
[1771295510357,1.24380718,2003.8,2003.1,0.46095085]
[1771295511223,2.49144145,2003.8,2003.2,1.24800319]
[1771295511631,2.49144145,2003.8,2003.1,1.24801638]
[1771295512449,2.49144145,2003.8,2003.0,1.7100292]
[1771295512648,2.49144145,2003.8,2003.0,0.46195085]
[1771295512820,2.49144145,2003.8,2003.0,1.71006824]
[1771295513020,2.49144145,2003.8,2003.1,0.46095085]
[1771295513324,2.49144145,2003.8,2003.1,1.70899374]
[1771295513953,2.49144145,2003.8,2003.2,0.46095085]
[1771295515252,0.0011,2004.0,2003.4,0.46095085]
[1771295515454,1.24380718,2003.9,2003.4,1.23595085]
[1771295515626,1.24380718,2003.9,2003.5,0.46095085]
[1771295516564,0.0011,2004.0,2003.5,0.46095085]
[1771295516717,1.24490718,2004.0,2003.5,0.46095085]
[1771295517562,1.24490718,2004.0,2003.6,1.24775404]
[1771295518357,2.49241238,2004.0,2003.5,0.46095085]
[1771295518562,2.49241238,2004.0,2003.5,1.7087632]
[1771295518786,1.24490718,2004.0,2003.5,1.7087632]
[1771295519737,0.0011,2003.8,2003.5,1.7087632]
[1771295519937,0.0011,2003.8,2003.5,1.24781235]
[1771295520233,1.24490718,2003.8,2003.3,1.7088485]
[1771295520438,1.24490718,2003.8,2003.4,0.46095085]
[1771295520664,1.24490718,2003.8,2003.4,0.44415085]
[1771295521754,1.24490718,2003.8,2003.5,1.24781632]
[1771295522062,0.0011,2004.0,2003.6,0.46095085]
[1771295524371,0.0011,2004.0,2003.7,1.24769177]
[1771295524738,0.0011,2004.0,2003.6,5.45173]
[1771295524739,0.0011,2004.0,2003.4,1.2478786]
[1771295524940,0.0011,2004.0,2003.4,1.70882945]
[1771295525592,0.0011,2004.0,2003.5,0.46095085]
[1771295526388,0.0011,2004.0,2003.4,1.2478786]
[1771295526588,0.0011,2004.0,2003.4,1.70882945]
[1771295526954,0.0011,2004.0,2003.5,0.776]
[1771295527286,0.0011,2004.3,2003.6,0.46095085]
[1771295527864,0.0011,2004.5,2003.7,0.46095085]